[Event "Titled Tuesday Blitz September 13 Late 2022"]
[White "Yurovskykh, Oleksandr"]
[Black "Vasquez Schroeder, Rodrigo"]
[WhiteFideId "14134020"]
[BlackFideId "3400042"]
[WhiteElo "2303"]
[BlackElo "2577"]
[Result "1-0"]
[Round "02"]
[TimeControl "180+1"]
[Date "2022.09.13"]
[WhiteClock "0:00:10"]
[BlackClock "0:00:20"]

1. d4 {[%clk 0:03:00]}  Nf6 {[%clk 0:02:59]} 2. Nf3 {[%clk 0:02:57]}  d5 {[%clk 0:02:56]} 3. c3 {[%clk 0:02:57]}  c6 {[%clk 0:02:47]} 4. Bg5 {[%clk 0:02:54]}  Ne4 {[%clk 0:02:44]} 5. Bh4 {[%clk 0:02:54]}  Bf5 {[%clk 0:02:44]} 6. Nbd2 {[%clk 0:02:54]}  Qb6 {[%clk 0:02:45]} 7. Qb3 {[%clk 0:02:54]}  Nd7 {[%clk 0:02:45]} 8. e3 {[%clk 0:02:54]}  e6 {[%clk 0:02:44]} 9. Be2 {[%clk 0:02:54]}  Bd6 {[%clk 0:02:44]} 10. O-O {[%clk 0:02:54]}  O-O {[%clk 0:02:44]} 11. Nxe4 {[%clk 0:02:50]}  Bxe4 {[%clk 0:02:43]} 12. Nd2 {[%clk 0:02:50]}  Bg6 {[%clk 0:02:42]} 13. Bg3 {[%clk 0:02:50]}  Bxg3 {[%clk 0:02:35]} 14. hxg3 {[%clk 0:02:51]}  Qc7 {[%clk 0:02:35]} 15. c4 {[%clk 0:02:49]}  Nf6 {[%clk 0:02:33]} 16. Rfc1 {[%clk 0:02:49]}  a5 {[%clk 0:02:28]} 17. Qc3 {[%clk 0:02:49]}  Rfc8 {[%clk 0:02:27]} 18. b3 {[%clk 0:02:32]}  Qd8 {[%clk 0:02:27]} 19. cxd5 {[%clk 0:02:31]}  exd5 {[%clk 0:02:21]} 20. a3 {[%clk 0:02:30]}  b6 {[%clk 0:02:11]} 21. b4 {[%clk 0:02:29]}  axb4 {[%clk 0:02:10]} 22. axb4 {[%clk 0:02:30]}  Rxa1 {[%clk 0:02:04]} 23. Rxa1 {[%clk 0:02:31]}  Ne8 {[%clk 0:02:04]} 24. Nf3 {[%clk 0:02:01]}  f6 {[%clk 0:02:03]} 25. Nh4 {[%clk 0:01:57]}  Bf7 {[%clk 0:02:03]} 26. Ra7 {[%clk 0:01:44]}  Nd6 {[%clk 0:01:58]} 27. Qa3 {[%clk 0:01:44]}  g5 {[%clk 0:01:51]} 28. Nf3 {[%clk 0:01:43]}  Nc4 {[%clk 0:01:37]} 29. Qa6 {[%clk 0:01:39]}  Rb8 {[%clk 0:01:36]} 30. Bd3 {[%clk 0:01:17]}  h6 {[%clk 0:01:36]} 31. Ne1 {[%clk 0:01:17]}  Be6 {[%clk 0:01:35]} 32. Nc2 {[%clk 0:01:15]}  Bc8 {[%clk 0:01:34]} 33. Qa2 {[%clk 0:01:16]}  b5 {[%clk 0:01:31]} 34. Na1 {[%clk 0:01:14]}  Qd6 {[%clk 0:01:28]} 35. Qb1 {[%clk 0:01:04]}  Qf8 {[%clk 0:01:05]} 36. Nb3 {[%clk 0:00:36]}  Nd6 {[%clk 0:00:49]} 37. Nc5 {[%clk 0:00:28]}  Bb7 {[%clk 0:00:41]} 38. Be2 {[%clk 0:00:24]}  Qf7 {[%clk 0:00:34]} 39. Bg4 {[%clk 0:00:20]}  f5 {[%clk 0:00:34]} 40. Be2 {[%clk 0:00:19]}  Ra8 {[%clk 0:00:35]} 41. Rxa8+ {[%clk 0:00:18]}  Bxa8 {[%clk 0:00:35]} 42. Bd3 {[%clk 0:00:19]}  Kg7 {[%clk 0:00:33]} 43. Qa1 {[%clk 0:00:19]}  Bb7 {[%clk 0:00:32]} 44. Qa7 {[%clk 0:00:19]}  Bc8 {[%clk 0:00:32]} 45. Qb8 {[%clk 0:00:18]}  Qe7 {[%clk 0:00:32]} 46. Kf1 {[%clk 0:00:16]}  Kf6 {[%clk 0:00:31]} 47. Ke2 {[%clk 0:00:12]}  f4 {[%clk 0:00:30]} 48. gxf4 {[%clk 0:00:08]}  gxf4 {[%clk 0:00:31]} 49. Kd2 {[%clk 0:00:08]}  fxe3+ {[%clk 0:00:31]} 50. fxe3 {[%clk 0:00:09]}  Kg7 {[%clk 0:00:29]} 51. Qa8 {[%clk 0:00:09]}  Qc7 {[%clk 0:00:25]} 52. Qa1 {[%clk 0:00:09]}  Bg4 {[%clk 0:00:22]} 53. Kc3 {[%clk 0:00:09]}  Qe7 {[%clk 0:00:21]} 54. Qe1 {[%clk 0:00:07]}  Bf5 {[%clk 0:00:20]} 55. Qg3+ {[%clk 0:00:07]}  Kh7 {[%clk 0:00:20]} 56. Be2 {[%clk 0:00:06]}  Ne4+ {[%clk 0:00:19]} 57. Nxe4 {[%clk 0:00:06]}  Qxe4 {[%clk 0:00:19]} 58. Qc7+ {[%clk 0:00:06]}  Kh8 {[%clk 0:00:19]} 59. Qe5+ {[%clk 0:00:06]}  Kh7 {[%clk 0:00:16]} 60. Qxe4 {[%clk 0:00:06]}  Bxe4 {[%clk 0:00:16]} 61. g3 {[%clk 0:00:07]}  Kg6 {[%clk 0:00:16]} 62. Kd2 {[%clk 0:00:07]}  Kg5 {[%clk 0:00:15]} 63. Ke1 {[%clk 0:00:08]}  Bf5 {[%clk 0:00:16]} 64. Kf2 {[%clk 0:00:08]}  Bg4 {[%clk 0:00:16]} 65. Bd3 {[%clk 0:00:08]}  Kf6 {[%clk 0:00:17]} 66. e4 {[%clk 0:00:06]}  dxe4 {[%clk 0:00:16]} 67. Bxe4 {[%clk 0:00:07]}  Bd7 {[%clk 0:00:17]} 68. Ke3 {[%clk 0:00:07]}  Ke6 {[%clk 0:00:17]} 69. Kf4 {[%clk 0:00:07]}  Kf6 {[%clk 0:00:17]} 70. Bf3 {[%clk 0:00:07]}  Be8 {[%clk 0:00:17]} 71. d5 {[%clk 0:00:06]}  cxd5 {[%clk 0:00:17]} 72. Bxd5 {[%clk 0:00:07]}  Bd7 {[%clk 0:00:17]} 73. Ke3 {[%clk 0:00:05]}  Ke5 {[%clk 0:00:17]} 74. Bg2 {[%clk 0:00:05]}  Be8 {[%clk 0:00:16]} 75. Bf1 {[%clk 0:00:04]}  Kd5 {[%clk 0:00:16]} 76. Be2 {[%clk 0:00:05]}  Bd7 {[%clk 0:00:15]} 77. Bd3 {[%clk 0:00:05]}  Bc6 {[%clk 0:00:14]} 78. Be4+ {[%clk 0:00:04]}  Kd6 {[%clk 0:00:15]} 79. Bxc6 {[%clk 0:00:04]}  Kxc6 {[%clk 0:00:16]} 80. Ke4 {[%clk 0:00:03]}  Kd6 {[%clk 0:00:15]} 81. Kd4 {[%clk 0:00:04]}  Ke6 {[%clk 0:00:15]} 82. Kc5 {[%clk 0:00:04]}  Kf5 {[%clk 0:00:16]} 83. Kxb5 {[%clk 0:00:05]}  Kg4 {[%clk 0:00:17]} 84. Kc5 {[%clk 0:00:05]}  Kxg3 {[%clk 0:00:18]} 85. b5 {[%clk 0:00:06]}  h5 {[%clk 0:00:18]} 86. b6 {[%clk 0:00:07]}  h4 {[%clk 0:00:19]} 87. b7 {[%clk 0:00:08]}  h3 {[%clk 0:00:20]} 88. b8=Q+ {[%clk 0:00:09]}  Kg2 {[%clk 0:00:21]} 89. Qb2+ {[%clk 0:00:09]}  Kh1 {[%clk 0:00:21]} 90. Qc1+ {[%clk 0:00:09]}  Kg2 {[%clk 0:00:21]} 91. Qd2+ {[%clk 0:00:10]}  Kh1 {[%clk 0:00:21]} 92. Qd1+ {[%clk 0:00:10]}  Kg2 {[%clk 0:00:22]} 93. Qg4+ {[%clk 0:00:10]}  Kh2 {[%clk 0:00:20]} 94. Kd4 {[%clk 0:00:10]} 1-0


[Site "https://www.chess.com"]

[Event "Titled Tuesday Blitz September 13 Late 2022"]
[White "Al-Tarboush, Ward"]
[Black "Yeritsyan, Hayk"]
[WhiteFideId "7601450"]
[BlackFideId "13307320"]
[WhiteElo "2234"]
[BlackElo "2380"]
[Result "1-0"]
[Round "03"]
[TimeControl "180+1"]
[Date "2022.09.13"]
[WhiteClock "0:00:42"]
[BlackClock "0:00:48"]

1. e4 {[%clk 0:03:00]}  c5 {[%clk 0:02:54]} 2. Nf3 {[%clk 0:03:00]}  e6 {[%clk 0:02:54]} 3. d4 {[%clk 0:03:00]}  cxd4 {[%clk 0:02:54]} 4. Nxd4 {[%clk 0:03:00]}  a6 {[%clk 0:02:55]} 5. Bd3 {[%clk 0:03:00]}  Qc7 {[%clk 0:02:55]} 6. O-O {[%clk 0:02:59]}  d6 {[%clk 0:02:55]} 7. c4 {[%clk 0:02:59]}  Nf6 {[%clk 0:02:56]} 8. Nc3 {[%clk 0:02:59]}  b6 {[%clk 0:02:56]} 9. Bg5 {[%clk 0:02:58]}  Be7 {[%clk 0:02:55]} 10. Qe2 {[%clk 0:02:59]}  Nbd7 {[%clk 0:02:55]} 11. Rfe1 {[%clk 0:02:58]}  O-O {[%clk 0:02:55]} 12. Rad1 {[%clk 0:02:58]}  Bb7 {[%clk 0:02:55]} 13. Kh1 {[%clk 0:02:41]}  Ne5 {[%clk 0:02:51]} 14. f4 {[%clk 0:02:40]}  Nxd3 {[%clk 0:02:50]} 15. Qxd3 {[%clk 0:02:41]}  Rfe8 {[%clk 0:02:45]} 16. e5 {[%clk 0:02:22]}  Ng4 {[%clk 0:02:13]} 17. Qg3 {[%clk 0:02:14]}  dxe5 {[%clk 0:01:57]} 18. Qxg4 {[%clk 0:02:08]}  exd4 {[%clk 0:01:44]} 19. Rxd4 {[%clk 0:02:01]}  Bxg5 {[%clk 0:01:36]} 20. Qxg5 {[%clk 0:01:55]}  h6 {[%clk 0:01:27]} 21. Qg4 {[%clk 0:01:54]}  Rad8 {[%clk 0:01:26]} 22. Rxd8 {[%clk 0:01:51]}  Rxd8 {[%clk 0:01:13]} 23. f5 {[%clk 0:01:14]}  Rd2 {[%clk 0:00:48]} 24. Ne4 {[%clk 0:00:42]} 1-0


[Site "https://www.chess.com"]

[Event "Titled Tuesday Blitz September 13 Late 2022"]
[White "Bayo Milagro, Alvaro"]
[Black "Yoo, Christopher Woojin"]
[WhiteFideId "22275240"]
[BlackFideId "30909694"]
[WhiteElo "2270"]
[BlackElo "2105"]
[Result "1-0"]
[Round "03"]
[TimeControl "180+1"]
[Date "2022.09.13"]
[WhiteClock "0:00:09"]
[BlackClock "0:00:02"]

1. e4 {[%clk 0:03:00]}  c5 {[%clk 0:02:27]} 2. Nf3 {[%clk 0:02:59]}  e6 {[%clk 0:02:25]} 3. d4 {[%clk 0:02:59]}  cxd4 {[%clk 0:02:26]} 4. Nxd4 {[%clk 0:02:59]}  Nf6 {[%clk 0:02:25]} 5. Nc3 {[%clk 0:02:59]}  Nc6 {[%clk 0:02:26]} 6. Be2 {[%clk 0:02:58]}  d6 {[%clk 0:02:17]} 7. O-O {[%clk 0:02:58]}  Be7 {[%clk 0:02:17]} 8. Be3 {[%clk 0:02:57]}  O-O {[%clk 0:02:17]} 9. f4 {[%clk 0:02:55]}  Bd7 {[%clk 0:02:17]} 10. Nb3 {[%clk 0:02:47]}  a6 {[%clk 0:02:11]} 11. a4 {[%clk 0:02:45]}  Na5 {[%clk 0:01:59]} 12. Nxa5 {[%clk 0:02:44]}  Qxa5 {[%clk 0:01:58]} 13. Qd2 {[%clk 0:02:45]}  Bc6 {[%clk 0:01:38]} 14. Nd5 {[%clk 0:02:39]}  Qd8 {[%clk 0:01:36]} 15. Nxe7+ {[%clk 0:02:40]}  Qxe7 {[%clk 0:01:36]} 16. e5 {[%clk 0:02:35]}  dxe5 {[%clk 0:01:29]} 17. fxe5 {[%clk 0:02:34]}  Nd5 {[%clk 0:01:29]} 18. Bd4 {[%clk 0:02:21]}  Rfd8 {[%clk 0:01:24]} 19. c3 {[%clk 0:02:21]}  b5 {[%clk 0:01:10]} 20. axb5 {[%clk 0:02:20]}  axb5 {[%clk 0:01:11]} 21. Bh5 {[%clk 0:02:03]}  Rxa1 {[%clk 0:01:08]} 22. Rxa1 {[%clk 0:02:00]}  g6 {[%clk 0:00:51]} 23. Bf3 {[%clk 0:01:57]}  Ra8 {[%clk 0:00:46]} 24. Rxa8+ {[%clk 0:01:54]}  Bxa8 {[%clk 0:00:47]} 25. h3 {[%clk 0:01:22]}  Bc6 {[%clk 0:00:40]} 26. b3 {[%clk 0:00:48]}  Qd7 {[%clk 0:00:29]} 27. Bc5 {[%clk 0:00:40]}  Nf6 {[%clk 0:00:04]} 28. Qxd7 {[%clk 0:00:21]}  Nxd7 {[%clk 0:00:05]} 29. Bxc6 {[%clk 0:00:20]}  Nxc5 {[%clk 0:00:05]} 30. b4 {[%clk 0:00:16]}  Nd3 {[%clk 0:00:05]} 31. Bxb5 {[%clk 0:00:16]}  Nxe5 {[%clk 0:00:06]} 32. Kf2 {[%clk 0:00:14]}  Kf8 {[%clk 0:00:06]} 33. Ke3 {[%clk 0:00:15]}  f5 {[%clk 0:00:02]} 34. Kd4 {[%clk 0:00:14]}  Nf7 {[%clk 0:00:02]} 35. c4 {[%clk 0:00:12]}  e5+ {[%clk 0:00:02]} 36. Kd5 {[%clk 0:00:11]}  e4 {[%clk 0:00:03]} 37. c5 {[%clk 0:00:12]}  Ke7 {[%clk 0:00:03]} 38. c6 {[%clk 0:00:12]}  Kd8 {[%clk 0:00:03]} 39. Bc4 {[%clk 0:00:11]}  Kc7 {[%clk 0:00:03]} 40. b5 {[%clk 0:00:10]}  e3 {[%clk 0:00:02]} 41. Kc5 {[%clk 0:00:10]}  Ne5 {[%clk 0:00:02]} 42. b6+ {[%clk 0:00:10]}  Kb8 {[%clk 0:00:01]} 43. c7+ {[%clk 0:00:09]}  Kc8 {[%clk 0:00:01]} 44. Ba6+ {[%clk 0:00:09]}  Kd7 {[%clk 0:00:01]} 45. c8=Q+ {[%clk 0:00:10]}  Ke7 {[%clk 0:00:02]} 46. Qc7+ {[%clk 0:00:10]}  Kf6 {[%clk 0:00:02]} 47. Qd6+ {[%clk 0:00:09]} 1-0


[Site "https://www.chess.com"]

[Event "Titled Tuesday Blitz September 13 Late 2022"]
[White "Bluebaum, Matthias"]
[Black "Al Hosani, Omran"]
[WhiteFideId "24651516"]
[BlackFideId "9308733"]
[WhiteElo "2633"]
[BlackElo "2167"]
[Result "1-0"]
[Round "03"]
[TimeControl "180+1"]
[Date "2022.09.13"]
[WhiteClock "0:01:50"]
[BlackClock "0:01:12"]

1. d4 {[%clk 0:03:00]}  Nf6 {[%clk 0:02:59]} 2. c4 {[%clk 0:03:01]}  e6 {[%clk 0:03:00]} 3. Nc3 {[%clk 0:03:02]}  d5 {[%clk 0:03:01]} 4. cxd5 {[%clk 0:03:02]}  exd5 {[%clk 0:03:01]} 5. Bg5 {[%clk 0:03:03]}  Be7 {[%clk 0:03:02]} 6. e3 {[%clk 0:03:03]}  O-O {[%clk 0:03:03]} 7. Bd3 {[%clk 0:03:04]}  c6 {[%clk 0:03:03]} 8. h3 {[%clk 0:03:04]}  Nbd7 {[%clk 0:03:03]} 9. Bf4 {[%clk 0:03:04]}  Re8 {[%clk 0:03:03]} 10. Nf3 {[%clk 0:03:04]}  Nf8 {[%clk 0:03:03]} 11. Qc2 {[%clk 0:03:05]}  Ne6 {[%clk 0:03:03]} 12. Bh2 {[%clk 0:03:04]}  Bd6 {[%clk 0:03:04]} 13. Bxd6 {[%clk 0:03:04]}  Qxd6 {[%clk 0:03:04]} 14. O-O-O {[%clk 0:03:04]}  b5 {[%clk 0:03:02]} 15. g4 {[%clk 0:03:05]}  a5 {[%clk 0:03:01]} 16. g5 {[%clk 0:03:04]}  Ne4 {[%clk 0:02:59]} 17. Nxe4 {[%clk 0:03:02]}  dxe4 {[%clk 0:03:00]} 18. Bxe4 {[%clk 0:03:03]}  Bb7 {[%clk 0:02:36]} 19. Bxh7+ {[%clk 0:03:01]}  Kh8 {[%clk 0:02:34]} 20. Ne5 {[%clk 0:02:53]}  Re7 {[%clk 0:02:18]} 21. g6 {[%clk 0:02:33]}  Ng5 {[%clk 0:02:14]} 22. gxf7 {[%clk 0:02:25]}  Rxe5 {[%clk 0:01:42]} 23. dxe5 {[%clk 0:02:22]}  Qxe5 {[%clk 0:01:42]} 24. Bg6 {[%clk 0:02:15]}  c5 {[%clk 0:01:42]} 25. Rhg1 {[%clk 0:02:06]}  Qf6 {[%clk 0:01:27]} 26. Rg4 {[%clk 0:01:51]}  Nxf7 {[%clk 0:01:14]} 27. Bxf7 {[%clk 0:01:48]}  Qxf7 {[%clk 0:01:12]} 28. Rh4+ {[%clk 0:01:48]}  Kg8 {[%clk 0:01:13]} 29. Qh7+ {[%clk 0:01:49]}  Kf8 {[%clk 0:01:12]} 30. Rf4 {[%clk 0:01:50]} 1-0


[Site "https://www.chess.com"]

[Event "Titled Tuesday Blitz September 13 Late 2022"]
[White "Bortnyk, Mykola"]
[Black "Timmermans, Mark"]
[WhiteFideId "14120836"]
[BlackFideId "1026399"]
[WhiteElo "2582"]
[BlackElo "2460"]
[Result "1-0"]
[Round "03"]
[TimeControl "180+1"]
[Date "2022.09.13"]
[WhiteClock "0:01:13"]
[BlackClock "0:01:01"]

1. e4 {[%clk 0:03:00]}  e5 {[%clk 0:02:57]} 2. Bc4 {[%clk 0:03:00]}  Nf6 {[%clk 0:02:55]} 3. d3 {[%clk 0:03:00]}  c6 {[%clk 0:02:55]} 4. Nf3 {[%clk 0:03:00]}  d5 {[%clk 0:02:55]} 5. Bb3 {[%clk 0:03:01]}  Bd6 {[%clk 0:02:55]} 6. Nc3 {[%clk 0:03:00]}  Be6 {[%clk 0:02:54]} 7. Bg5 {[%clk 0:02:58]}  d4 {[%clk 0:02:21]} 8. Ne2 {[%clk 0:02:54]}  a5 {[%clk 0:02:20]} 9. O-O {[%clk 0:02:52]}  Nbd7 {[%clk 0:02:18]} 10. c3 {[%clk 0:02:27]}  c5 {[%clk 0:02:15]} 11. cxd4 {[%clk 0:02:25]}  cxd4 {[%clk 0:02:16]} 12. Rc1 {[%clk 0:02:21]}  O-O {[%clk 0:02:13]} 13. Bxe6 {[%clk 0:02:19]}  fxe6 {[%clk 0:02:14]} 14. Qb3 {[%clk 0:02:19]}  Nc5 {[%clk 0:02:13]} 15. Rxc5 {[%clk 0:02:10]}  Bxc5 {[%clk 0:02:13]} 16. Qxe6+ {[%clk 0:02:11]}  Kh8 {[%clk 0:02:13]} 17. Nxe5 {[%clk 0:02:08]}  Qe8 {[%clk 0:02:07]} 18. Nf4 {[%clk 0:02:02]}  Ra6 {[%clk 0:01:58]} 19. Qxe8 {[%clk 0:01:38]}  Rxe8 {[%clk 0:01:59]} 20. Bxf6 {[%clk 0:01:36]}  gxf6 {[%clk 0:01:56]} 21. Nd7 {[%clk 0:01:26]}  Ba7 {[%clk 0:01:55]} 22. Nd5 {[%clk 0:01:25]}  Rc8 {[%clk 0:01:40]} 23. N7xf6 {[%clk 0:01:21]}  Rc2 {[%clk 0:01:39]} 24. e5 {[%clk 0:01:21]}  Rxb2 {[%clk 0:01:28]} 25. Re1 {[%clk 0:01:21]}  Rxa2 {[%clk 0:01:27]} 26. f4 {[%clk 0:01:22]}  Bc5 {[%clk 0:01:03]} 27. e6 {[%clk 0:01:21]}  a4 {[%clk 0:01:03]} 28. e7 {[%clk 0:01:12]}  Bxe7 {[%clk 0:01:01]} 29. Rxe7 {[%clk 0:01:13]} 1-0


[Site "https://www.chess.com"]

[Event "Titled Tuesday Blitz September 13 Late 2022"]
[White "Girel, Joseph"]
[Black "Mortazavi, Ali"]
[WhiteFideId "36033561"]
[BlackFideId "401323"]
[WhiteElo "2104"]
[BlackElo "2339"]
[Result "0-1"]
[Round "03"]
[TimeControl "180+1"]
[Date "2022.09.13"]
[WhiteClock "0:00:01"]
[BlackClock "0:00:21"]

1. e4 {[%clk 0:03:00]}  c6 {[%clk 0:02:59]} 2. Nf3 {[%clk 0:02:59]}  d5 {[%clk 0:03:00]} 3. e5 {[%clk 0:02:59]}  Bf5 {[%clk 0:03:00]} 4. d4 {[%clk 0:02:57]}  e6 {[%clk 0:03:00]} 5. Be2 {[%clk 0:02:57]}  Ne7 {[%clk 0:03:01]} 6. Be3 {[%clk 0:02:53]}  Ng6 {[%clk 0:03:01]} 7. O-O {[%clk 0:02:52]}  Nd7 {[%clk 0:03:01]} 8. c4 {[%clk 0:02:52]}  dxc4 {[%clk 0:03:00]} 9. Bxc4 {[%clk 0:02:51]}  Nb6 {[%clk 0:03:01]} 10. Bb3 {[%clk 0:02:52]}  Nh4 {[%clk 0:02:57]} 11. Nxh4 {[%clk 0:02:47]}  Qxh4 {[%clk 0:02:58]} 12. Nc3 {[%clk 0:02:48]}  Be7 {[%clk 0:02:47]} 13. a4 {[%clk 0:02:41]}  O-O {[%clk 0:02:34]} 14. a5 {[%clk 0:02:39]}  Nd5 {[%clk 0:02:35]} 15. Nxd5 {[%clk 0:02:39]}  cxd5 {[%clk 0:02:34]} 16. Qd2 {[%clk 0:02:38]}  Rfc8 {[%clk 0:02:16]} 17. Rfc1 {[%clk 0:02:34]}  h6 {[%clk 0:02:06]} 18. Qe2 {[%clk 0:02:26]}  a6 {[%clk 0:01:52]} 19. Ba4 {[%clk 0:02:23]}  Bg5 {[%clk 0:01:36]} 20. Bd7 {[%clk 0:02:18]}  Rxc1+ {[%clk 0:01:25]} 21. Rxc1 {[%clk 0:02:19]}  Be4 {[%clk 0:01:02]} 22. f3 {[%clk 0:02:10]}  Bg6 {[%clk 0:01:02]} 23. Qf2 {[%clk 0:02:07]}  Qh5 {[%clk 0:00:52]} 24. Rc7 {[%clk 0:01:59]}  Bd8 {[%clk 0:00:46]} 25. g4 {[%clk 0:01:38]}  Qh3 {[%clk 0:00:42]} 26. Rc8 {[%clk 0:01:11]}  Rxc8 {[%clk 0:00:42]} 27. Bxc8 {[%clk 0:01:12]}  Bd3 {[%clk 0:00:42]} 28. b4 {[%clk 0:01:01]}  Bh4 {[%clk 0:00:42]} 29. Qg2 {[%clk 0:01:00]}  Qxg2+ {[%clk 0:00:40]} 30. Kxg2 {[%clk 0:00:57]}  Be1 {[%clk 0:00:41]} 31. f4 {[%clk 0:00:50]}  Bxb4 {[%clk 0:00:39]} 32. f5 {[%clk 0:00:48]}  exf5 {[%clk 0:00:38]} 33. gxf5 {[%clk 0:00:49]}  Bxa5 {[%clk 0:00:36]} 34. Bxb7 {[%clk 0:00:42]}  Be4+ {[%clk 0:00:28]} 35. Kf1 {[%clk 0:00:37]}  Bd8 {[%clk 0:00:28]} 36. Bxa6 {[%clk 0:00:18]}  Bxf5 {[%clk 0:00:28]} 37. Kf2 {[%clk 0:00:18]}  Be4 {[%clk 0:00:28]} 38. Bb7 {[%clk 0:00:17]}  g5 {[%clk 0:00:28]} 39. Ke2 {[%clk 0:00:17]}  Kg7 {[%clk 0:00:28]} 40. Bf2 {[%clk 0:00:17]}  Kg6 {[%clk 0:00:29]} 41. Bg3 {[%clk 0:00:17]}  h5 {[%clk 0:00:29]} 42. Bc8 {[%clk 0:00:11]}  Bf5 {[%clk 0:00:29]} 43. Bb7 {[%clk 0:00:10]}  Be6 {[%clk 0:00:29]} 44. Ba6 {[%clk 0:00:10]}  h4 {[%clk 0:00:29]} 45. Bf2 {[%clk 0:00:10]}  g4 {[%clk 0:00:29]} 46. Bd3+ {[%clk 0:00:10]}  Bf5 {[%clk 0:00:29]} 47. Bb5 {[%clk 0:00:11]}  Bg5 {[%clk 0:00:28]} 48. Bc6 {[%clk 0:00:10]}  Be4 {[%clk 0:00:27]} 49. Bd7 {[%clk 0:00:10]}  Bf5 {[%clk 0:00:26]} 50. Bc6 {[%clk 0:00:09]}  Be6 {[%clk 0:00:27]} 51. Kf1 {[%clk 0:00:08]}  Kf5 {[%clk 0:00:26]} 52. Ba4 {[%clk 0:00:06]}  Ke4 {[%clk 0:00:24]} 53. Bc2+ {[%clk 0:00:05]}  Kf4 {[%clk 0:00:23]} 54. Ke2 {[%clk 0:00:05]}  g3 {[%clk 0:00:24]} 55. hxg3+ {[%clk 0:00:04]}  hxg3 {[%clk 0:00:25]} 56. Be3+ {[%clk 0:00:04]}  Kg4 {[%clk 0:00:25]} 57. Bxg5 {[%clk 0:00:03]}  Kxg5 {[%clk 0:00:26]} 58. Kf3 {[%clk 0:00:03]}  Kh4 {[%clk 0:00:27]} 59. Kg2 {[%clk 0:00:03]}  Bh3+ {[%clk 0:00:23]} 60. Kf3 {[%clk 0:00:02]}  Be6 {[%clk 0:00:22]} 61. Bb3 {[%clk 0:00:01]}  Kh3 {[%clk 0:00:21]} 0-1


[Site "https://www.chess.com"]

[Event "Titled Tuesday Blitz September 13 Late 2022"]
[White "Graif, William"]
[Black "Gokerkan, Cem Kaan"]
[WhiteFideId "2609835"]
[BlackFideId "6336760"]
[WhiteElo "1942"]
[BlackElo "2364"]
[Result "1-0"]
[Round "03"]
[TimeControl "180+1"]
[Date "2022.09.13"]
[WhiteClock "0:00:04"]
[BlackClock "0:00:01"]

1. d4 {[%clk 0:02:58]}  g6 {[%clk 0:03:00]} 2. e4 {[%clk 0:02:47]}  Bg7 {[%clk 0:03:00]} 3. Nc3 {[%clk 0:02:47]}  d6 {[%clk 0:02:59]} 4. Nf3 {[%clk 0:02:38]}  a6 {[%clk 0:02:59]} 5. a4 {[%clk 0:02:30]}  b6 {[%clk 0:02:58]} 6. Be2 {[%clk 0:02:24]}  Bb7 {[%clk 0:02:56]} 7. O-O {[%clk 0:02:24]}  Nd7 {[%clk 0:02:56]} 8. Re1 {[%clk 0:02:20]}  e6 {[%clk 0:02:56]} 9. Bg5 {[%clk 0:02:15]}  Ne7 {[%clk 0:02:56]} 10. Qd2 {[%clk 0:02:11]}  O-O {[%clk 0:02:56]} 11. Rad1 {[%clk 0:02:06]}  Re8 {[%clk 0:02:30]} 12. Qf4 {[%clk 0:01:53]}  f6 {[%clk 0:02:04]} 13. Qg4 {[%clk 0:01:12]}  Nf8 {[%clk 0:01:43]} 14. Be3 {[%clk 0:01:07]}  Kh8 {[%clk 0:01:26]} 15. Qh3 {[%clk 0:00:59]}  Bc8 {[%clk 0:01:22]} 16. e5 {[%clk 0:00:55]}  Nf5 {[%clk 0:01:17]} 17. Ne4 {[%clk 0:00:49]}  Nxe3 {[%clk 0:01:09]} 18. fxe3 {[%clk 0:00:49]}  Bb7 {[%clk 0:01:08]} 19. Nxf6 {[%clk 0:00:40]}  Bxf6 {[%clk 0:01:09]} 20. exf6 {[%clk 0:00:41]}  Qxf6 {[%clk 0:01:09]} 21. Rf1 {[%clk 0:00:41]}  Qf5 {[%clk 0:01:01]} 22. Qh4 {[%clk 0:00:37]}  Qe4 {[%clk 0:00:36]} 23. Qf6+ {[%clk 0:00:35]}  Kg8 {[%clk 0:00:37]} 24. Nh4 {[%clk 0:00:18]}  Nd7 {[%clk 0:00:28]} 25. Qf7+ {[%clk 0:00:18]}  Kh8 {[%clk 0:00:29]} 26. Qxd7 {[%clk 0:00:16]}  Qxh4 {[%clk 0:00:29]} 27. Rf7 {[%clk 0:00:14]}  Qh6 {[%clk 0:00:16]} 28. Qxc7 {[%clk 0:00:13]}  Be4 {[%clk 0:00:13]} 29. Bf3 {[%clk 0:00:10]}  Rf8 {[%clk 0:00:08]} 30. Bxe4 {[%clk 0:00:09]}  Qxe3+ {[%clk 0:00:07]} 31. Kh1 {[%clk 0:00:08]}  Rxf7 {[%clk 0:00:08]} 32. Qxf7 {[%clk 0:00:07]}  Qxe4 {[%clk 0:00:08]} 33. Qf6+ {[%clk 0:00:08]}  Kg8 {[%clk 0:00:09]} 34. Rf1 {[%clk 0:00:08]}  Rc8 {[%clk 0:00:03]} 35. h3 {[%clk 0:00:05]}  a5 {[%clk 0:00:03]} 36. c3 {[%clk 0:00:05]}  d5 {[%clk 0:00:03]} 37. Qf7+ {[%clk 0:00:05]}  Kh8 {[%clk 0:00:03]} 38. Qe7 {[%clk 0:00:05]}  Qe2 {[%clk 0:00:01]} 39. Rf8+ {[%clk 0:00:04]} 1-0


[Site "https://www.chess.com"]